bitfinex/quotes_ETHUSD_20220115
["timestamp","ask_amount","ask_price","bid_price","bid_amount"]
[1642272723617,2.55733902,3344.4,3344.2,0.74843685]
[1642272724013,2.55733902,3344.3,3344.2,0.74843685]
[1642272724615,2.55733902,3344.4,3344.2,0.74843685]
[1642272731203,2.55733902,3344.4,3344.2,0.75853285]
[1642272731505,2.06290245,3344.4,3344.2,0.75853285]
[1642272731705,7.50513684,3344.6,3344.2,0.75853285]
[1642272733302,7.50513684,3344.6,3344.2,0.01123285]
[1642272735068,0.00863935,3344.5,3344.2,0.01123285]
[1642272735268,7.50513684,3344.6,3344.2,0.01123285]
[1642272735668,7.50513684,3344.6,3344.2,0.00113685]
[1642272737773,9.03365589,3344.6,3344.2,0.00113685]
[1642272740109,9.03365589,3344.6,3344.5,1.32673991]
[1642272741951,0.0138083,3344.5,3344.2,0.00113685]
[1642272742152,9.03365589,3344.6,3344.2,0.00113685]
[1642272742352,7.50513684,3344.6,3344.2,0.00113685]
[1642272743356,9.02882512,3344.6,3344.2,0.00113685]
[1642272743956,1.52368828,3344.5,3344.2,0.00113685]
[1642272744357,1.52368828,3344.5,3344.2,1.48354819]
[1642272745809,9.02768828,3344.6,3344.2,1.48354819]
[1642272746808,9.02768828,3344.6,3344.2,1.49273619]
[1642272747007,9.02768828,3344.6,3344.3,0.74722]
[1642272748808,9.02768828,3344.6,3344.3,0.757802]
[1642272749650,7.504,3344.6,3344.3,0.757802]
[1642272750051,7.504,3344.6,3344.4,1.1474272]
[1642272750454,7.504,3344.6,3344.3,0.757802]
[1642272750654,7.504,3344.6,3344.4,0.429]
[1642272750852,7.504,3344.6,3344.4,1.4028]
[1642272751453,7.504,3344.6,3344.5,0.012009]
[1642272751653,7.504,3344.6,3344.5,0.441009]
[1642272752854,10.06105821,3344.6,3344.5,0.441009]
[1642272753506,10.06105821,3344.6,3344.5,0.429]
[1642272768306,0.78085155,3344.6,3344.5,0.429]
[1642272768702,0.78085155,3344.6,3344.5,0.5054579]
[1642272769104,7.499,3344.8,3344.5,0.5054579]
[1642272769410,7.499,3344.8,3344.7,0.018819]
[1642272769611,7.499,3344.8,3344.7,11.931619]
[1642272769612,0.53528586,3344.8,3344.7,11.931619]
[1642272769805,0.53755955,3344.8,3344.7,12.0080769]
[1642272770006,0.53755955,3344.8,3344.7,4.9080769]
[1642272770203,0.777,3345.1,3344.7,4.9080769]
[1642272770408,1.554,3345.1,3345.0,0.042388]
[1642272770606,1.554,3345.1,3345.0,2.61675942]
[1642272771407,6.44981574,3345.8,3345.0,2.89533632]
[1642272771608,5.41094969,3345.8,3345.6,0.020004]
[1642272771854,5.41094969,3345.8,3345.7,2.52164732]
[1642272772158,5.41663393,3345.8,3345.7,2.52164732]
[1642272772558,3.89294565,3345.8,3345.7,2.50734532]
[1642272772761,3.89294565,3345.8,3345.6,0.74696]
[1642272773158,0.00511581,3345.7,3345.6,0.74696]
[1642272773858,0.00511581,3345.7,3345.3,1.503003]
[1642272773859,0.78211581,3345.7,3345.3,1.503003]
[1642272774059,0.78211581,3345.7,3345.3,1.932003]
[1642272774260,0.00454739,3345.6,3345.3,1.932003]
[1642272774764,0.00397896,3345.5,3345.3,1.932003]
[1642272775159,0.00341054,3345.4,3345.3,1.932003]
[1642272776208,0.00341054,3345.4,3345.3,1.92291]
[1642272777008,0.78041054,3345.4,3345.3,1.92291]
[1642272778416,0.78041054,3345.4,3345.3,3.34493754]
[1642272779552,0.78041054,3345.4,3345.3,6.34493754]
[1642272779852,0.78041054,3345.4,3345.3,7.53656174]
[1642272780252,1.55741054,3345.4,3345.3,7.53656174]
[1642272780656,0.777,3345.7,3345.3,7.53656174]
[1642272780853,0.777,3345.7,3345.6,0.020004]
[1642272781052,0.78085155,3345.8,3345.6,0.020004]
[1642272782761,0.78085155,3345.8,3345.6,0.766894]
[1642272783404,1.55785155,3345.8,3345.6,0.766894]
[1642272784302,1.55785155,3345.8,3345.6,0.70646042]
[1642272786506,1.87118437,3345.7,3345.6,0.70646042]
[1642272786707,1.90630797,3345.7,3345.6,0.70646042]
[1642272786957,2.33485155,3345.8,3345.6,0.70646042]
[1642272788660,2.55652903,3345.7,3345.6,0.70646042]
[1642272789960,3.33352903,3345.7,3345.6,0.70646042]
[1642272793709,4.11052903,3345.7,3345.6,0.70646042]
[1642272796854,4.88752903,3345.7,3345.6,0.70646042]
[1642272800006,5.66452903,3345.7,3345.6,0.70646042]
[1642272803556,6.44152903,3345.7,3345.3,5.59848474]
[1642272803757,0.00486155,3345.6,3345.3,4.40686054]
[1642272803957,0.0059984,3345.6,3345.3,4.40686054]
[1642272804560,2.55652903,3345.5,3345.3,4.40686054]
[1642272805804,0.00113685,3345.6,3345.3,4.40686054]
[1642272805805,2.55766588,3345.6,3345.3,4.40686054]
[1642272806110,1.43682081,3345.5,3345.3,4.40686054]
[1642272806905,2.21382081,3345.5,3345.3,4.40686054]
[1642272807307,2.55652903,3345.4,3345.3,4.40686054]
[1642272809756,12.45652903,3345.4,3345.3,4.40686054]
[1642272810154,13.23352903,3345.4,3345.3,4.40686054]
[1642272810357,13.23352903,3345.4,3345.3,3.0]
[1642272811361,14.49501594,3345.4,3345.3,3.0]
[1642272812756,3.33352903,3345.4,3345.3,3.0]
[1642272813410,4.11052903,3345.4,3345.3,3.0]
[1642272815007,4.11052903,3345.4,3345.3,2.95]
[1642272815809,9.26052903,3345.4,3345.3,2.95]
[1642272816011,10.23342903,3345.4,3345.3,2.95]
[1642272816711,16.51042903,3345.4,3345.3,2.95]
[1642272816956,18.03411731,3345.4,3345.3,2.95]
[1642272817155,12.53411731,3345.4,3345.3,2.95]
[1642272817756,17.93411731,3345.4,3345.3,2.95]
[1642272817957,16.41042903,3345.4,3345.3,2.95]
[1642272818558,16.52992903,3345.4,3345.3,2.95]
[1642272819162,11.12992903,3345.4,3345.3,2.95]
[1642272819560,5.97992903,3345.4,3345.3,2.95]
[1642272819757,9.15702903,3345.4,3345.3,2.95]
[1642272819958,9.81452903,3345.4,3345.3,2.95]
[1642272821308,11.33346048,3345.4,3345.3,2.95]
[1642272823111,12.11046048,3345.4,3345.3,2.95]
[1642272824959,10.59152903,3345.4,3345.3,2.95]
[1642272826258,11.36852903,3345.4,3345.3,2.95]
[1642272827659,12.88746048,3345.4,3345.3,2.95]
[1642272829113,11.36852903,3345.4,3345.3,2.95]
[1642272829517,7.21852903,3345.4,3345.3,2.95]
[1642272829713,7.99552903,3345.4,3345.3,2.95]
[1642272832961,8.77252903,3345.4,3345.3,2.95]
[1642272836208,9.54952903,3345.4,3345.3,2.95]
[1642272839457,10.32652903,3345.4,3345.3,2.95]
[1642272842661,11.10352903,3345.4,3345.3,2.95]
[1642272844416,12.25315618,3345.4,3345.3,2.95]
[1642272845615,11.10352903,3345.4,3345.3,2.95]
[1642272845815,11.88052903,3345.4,3345.3,2.95]
[1642272847273,13.34492383,3345.4,3345.3,2.95]
[1642272847677,11.88052903,3345.4,3345.3,2.95]
[1642272848872,12.65752903,3345.4,3345.3,2.95]
[1642272852220,13.43452903,3345.4,3345.3,2.95]
[1642272855364,14.21152903,3345.4,3345.3,2.95]
[1642272857668,14.11152903,3345.4,3345.3,2.95]
[1642272858517,14.88852903,3345.4,3345.3,2.95]
[1642272861716,15.66552903,3345.4,3345.3,2.95]
[1642272864364,17.08782706,3345.4,3345.3,2.95]
[1642272864965,17.86482706,3345.4,3345.3,2.95]
[1642272866620,16.44252903,3345.4,3345.3,2.95]
[1642272868221,17.21952903,3345.4,3345.3,2.95]
[1642272868627,17.21952903,3345.4,3345.3,4.43510593]
[1642272869120,17.21952903,3345.4,3345.3,2.95]
[1642272871466,17.99652903,3345.4,3345.3,2.95]
[1642272875017,18.77352903,3345.4,3345.3,2.95]
[1642272876422,22.61024035,3345.4,3345.3,2.95]
[1642272878265,23.38724035,3345.4,3345.3,2.95]
[1642272881019,23.38724035,3345.4,3345.3,4.95]
[1642272881418,18.18887035,3345.4,3345.3,2.95]
[1642272882021,14.35215903,3345.4,3345.3,2.95]
[1642272883422,7.02269357,3345.4,3345.3,4.74857819]
[1642272883923,7.02269357,3345.4,3345.3,4.82503609]
[1642272884569,7.02269357,3345.4,3345.3,5.25403609]
[1642272884769,7.79969357,3345.4,3345.3,5.25403609]
[1642272885671,1.82436357,3345.4,3345.3,5.25403609]
[1642272886271,3.885,3345.7,3345.4,0.02637524]
[1642272886472,3.885,3345.7,3345.4,1.20223524]
[1642272886676,3.885,3345.7,3345.6,0.74686]
[1642272886871,3.885,3345.7,3345.6,1.91968719]
[1642272887073,3.88670527,3345.7,3345.6,1.91968719]
[1642272887471,3.78670527,3345.7,3345.6,1.91968719]
[1642272888130,4.56370527,3345.7,3345.6,1.91968719]
[1642272891324,5.34070527,3345.7,3345.6,1.91968719]
[1642272892176,5.35988627,3345.7,3345.6,1.91968719]
[1642272892570,5.34070527,3345.7,3345.6,1.91968719]
[1642272892770,5.34070527,3345.7,3345.6,1.17282719]
[1642272894476,6.11770527,3345.7,3345.6,1.17282719]
[1642272894972,6.12980527,3345.7,3345.6,1.17282719]
[1642272895172,6.11770527,3345.7,3345.6,1.17282719]
[1642272895371,6.11770527,3345.7,3345.6,4.45577273]
[1642272895634,6.11770527,3345.7,3345.6,2.66668719]
[1642272896421,6.11770527,3345.7,3345.6,4.45746733]
[1642272896722,6.11770527,3345.7,3345.6,2.66668719]
[1642272897725,6.89470527,3345.7,3345.6,2.66668719]
[1642272897924,6.89470527,3345.7,3345.6,4.46037294]
[1642272898324,6.89470527,3345.7,3345.6,2.66668719]
[1642272898526,6.39470527,3345.7,3345.6,4.46125177]
[1642272898725,6.39470527,3345.7,3345.6,2.66668719]
[1642272899127,6.40416527,3345.7,3345.6,2.66668719]
[1642272899376,6.40416527,3345.7,3345.6,1.17282719]
[1642272899681,6.39470527,3345.7,3345.6,1.17282719]
[1642272900075,6.40579327,3345.7,3345.6,1.17282719]
[1642272900274,6.39470527,3345.7,3345.6,1.17282719]
[1642272900977,7.17170527,3345.7,3345.6,1.17282719]
[1642272901577,9.72789667,3345.7,3345.6,1.17282719]
[1642272902577,9.74093567,3345.7,3345.6,1.17282719]
[1642272903222,9.74121067,3345.7,3345.6,1.17282719]
[1642272904316,10.51821067,3345.7,3345.6,1.09809772]
[1642272906326,12.03459438,3345.7,3345.6,1.09809772]
[1642272907469,12.81159438,3345.7,3345.6,1.09809772]
[1642272907865,12.81159438,3345.7,3345.6,1.04809772]
[1642272908066,11.29521067,3345.7,3345.6,1.04809772]
[1642272910368,11.28189667,3345.7,3345.6,1.04809772]
[1642272910628,12.05889667,3345.7,3345.6,1.04809772]
[1642272912420,12.07035667,3345.7,3345.6,1.04809772]
[1642272913821,12.84735667,3345.7,3345.6,1.04809772]
[1642272917071,13.6226514,3345.7,3345.6,1.04809772]
[1642272918318,13.6226514,3345.7,3345.3,2.95]
[1642272918520,0.028537,3345.5,3345.3,2.95]
[1642272919521,2.5561914,3345.4,3345.3,2.95]
[1642272920125,2.5739014,3345.4,3345.3,2.95]
[1642272920320,3.3509014,3345.4,3345.3,2.95]
[1642272921973,3.3331914,3345.4,3345.3,2.95]
[1642272922173,3.3487554,3345.4,3345.3,2.95]
[1642272922575,7.3987554,3345.4,3345.3,2.95]
[1642272922974,8.72558724,3345.4,3345.3,2.95]
[1642272923278,4.67558724,3345.4,3345.3,2.95]
[1642272923478,10.05258724,3345.4,3345.3,2.95]
[1642272924675,5.45258724,3345.4,3345.3,2.95]
[1642272925726,5.43702324,3345.4,3345.3,2.95]
[1642272926726,6.21402324,3345.4,3345.3,2.95]
[1642272929974,6.99102324,3345.4,3345.3,2.95]
[1642272933129,7.76802324,3345.4,3345.3,2.45]
[1642272936330,8.54502324,3345.4,3345.3,2.45]
[1642272938274,8.56134124,3345.4,3345.3,2.45]
[1642272939475,9.33834124,3345.4,3345.3,2.45]
[1642272940475,9.32202324,3345.4,3345.3,2.45]
[1642272942320,7.9951914,3345.4,3345.3,2.45]
[1642272942822,8.7721914,3345.4,3345.3,2.45]
[1642272945773,9.5491914,3345.4,3345.3,2.45]
[1642272949122,10.3261914,3345.4,3345.3,2.45]
[1642272950321,9.84834363,3345.4,3345.3,2.45]
[1642272951725,9.84834363,3345.4,3345.3,2.4]
[1642272952372,10.62534363,3345.4,3345.3,2.4]
[1642272953173,10.62534363,3345.4,3345.3,2.35]
[1642272953672,10.62534363,3345.4,3345.3,2.25]
[1642272955273,10.62534363,3345.4,3345.3,3.68815472]
[1642272955826,11.40234363,3345.4,3345.3,3.68815472]
[1642272958527,11.40234363,3345.4,3345.3,2.25]
[1642272959377,12.17934363,3345.4,3345.3,2.25]
[1642272959580,12.17934363,3345.4,3345.3,3.5496254]
[1642272960375,12.17934363,3345.4,3345.3,2.25]
[1642272962578,12.95634363,3345.4,3345.3,2.25]
[1642272963425,12.95634363,3345.4,3345.3,3.58519269]
[1642272965725,13.73334363,3345.4,3345.3,3.58519269]
[1642272966876,7.75799363,3345.4,3345.3,6.97741078]
[1642272967381,1.78273363,3345.4,3345.3,6.97741078]
[1642272967976,11.055,3345.7,3345.3,6.97741078]
[1642272968177,11.055,3345.7,3345.4,1.51596686]
[1642272968377,11.055,3345.7,3345.5,0.429]
[1642272968776,11.832,3345.7,3345.5,2.24787526]
[1642272969377,11.832,3345.7,3345.6,0.74692]
[1642272969777,11.83370527,3345.7,3345.6,0.74692]
[1642272972124,12.61070527,3345.7,3345.6,0.74692]
[1642272972924,12.63959127,3345.7,3345.6,0.74692]
[1642272973128,12.63959127,3345.7,3345.6,1.17592]
[1642272974572,12.61070527,3345.7,3345.6,1.17592]
[1642272975475,13.38770527,3345.7,3345.6,1.17592]
[1642272978134,13.40720727,3345.7,3345.6,1.17592]
[1642272978523,14.18420727,3345.7,3345.6,1.17592]
[1642272981626,14.96120727,3345.7,3345.6,1.17592]
[1642272982174,14.94170527,3345.7,3345.6,1.17592]
[1642272982877,14.95112727,3345.7,3345.6,1.17592]
[1642272983084,14.94170527,3345.7,3345.6,1.17592]
[1642272984380,14.79170527,3345.7,3345.6,1.17592]
[1642272984778,15.56870527,3345.7,3345.6,1.17592]
[1642272986827,15.36631543,3345.7,3345.6,1.17592]
[1642272987227,17.92256777,3345.7,3345.6,1.17592]
[1642272988028,18.69956777,3345.7,3345.6,1.17592]
[1642272988234,18.69956777,3345.7,3345.6,0.429]
[1642272988431,18.71662177,3345.7,3345.4,1.49385]
[1642272988631,0.03314414,3345.6,3345.4,1.49385]
[1642272988830,0.00113685,3345.6,3345.4,1.49385]
[1642272989230,2.55738919,3345.6,3345.4,1.49385]
[1642272991183,3.33438919,3345.6,3345.4,1.49385]
[1642272991782,3.35061419,3345.6,3345.4,1.49385]
[1642272992183,0.029209,3345.5,3345.4,1.49385]
[1642272992382,3.34348219,3345.6,3345.4,1.49385]
[1642272992582,2.55625234,3345.5,3345.4,1.49385]
[1642272994326,3.33325234,3345.5,3345.4,1.49385]
[1642272996877,3.36011434,3345.5,3345.4,1.49385]
[1642272997476,4.13711434,3345.5,3345.4,1.49385]
[1642272997879,4.11025234,3345.5,3345.4,1.49385]
[1642272998278,4.11025234,3345.5,3345.3,3.58519269]
[1642272998478,4.11964334,3345.5,3345.3,3.58519269]
[1642272998880,2.55625234,3345.4,3345.3,3.58519269]
[1642272999281,2.55625234,3345.4,3345.3,2.25]
[1642273000647,3.33325234,3345.4,3345.3,2.25]
[1642273001244,3.34684934,3345.4,3345.3,2.25]
[1642273001840,3.33325234,3345.4,3345.3,2.25]
[1642273002040,3.33325234,3345.4,3345.3,3.51522647]
[1642273002239,3.34629634,3345.4,3345.3,3.51522647]
[1642273002841,3.33325234,3345.4,3345.3,3.51522647]
[1642273003748,4.11025234,3345.4,3345.3,3.51522647]
[1642273006879,4.11025234,3345.4,3345.3,2.25]
[1642273007079,4.88725234,3345.4,3345.3,2.25]
[1642273009736,4.90108734,3345.4,3345.3,2.25]
[1642273010335,5.67808734,3345.4,3345.3,2.25]
[1642273011636,5.66425234,3345.4,3345.3,2.25]
[1642273013583,6.44125234,3345.4,3345.3,3.77494691]
[1642273015185,6.44125234,3345.4,3345.3,4.52196691]
[1642273016032,0.46582234,3345.4,3345.3,6.38068196]
[1642273016636,1.554,3345.5,3345.3,6.38068196]
[1642273019683,0.777,3345.5,3345.4,2.05282014]
[1642273020078,0.777,3345.6,3345.4,2.05282014]
[1642273020679,0.777,3345.6,3345.4,2.48182014]
[1642273022881,1.554,3345.6,3345.4,2.48182014]
[1642273023743,1.564678,3345.6,3345.4,2.48182014]
[1642273024345,0.07472724,3345.5,3345.4,2.48182014]
[1642273024551,0.07472724,3345.5,3345.4,1.17588]
[1642273024846,0.07472724,3345.5,3345.4,0.429]
[1642273025045,0.08502524,3345.5,3345.4,0.429]
[1642273025244,0.07472724,3345.5,3345.4,0.429]
[1642273026046,0.85172724,3345.5,3345.4,0.429]
[1642273028287,0.85172724,3345.5,3345.3,4.52196691]
[1642273028483,0.86390124,3345.5,3345.3,4.52196691]
[1642273029591,1.64090124,3345.5,3345.3,4.52196691]
[1642273031028,1.62872724,3345.5,3345.3,4.52196691]
[1642273032834,2.40572724,3345.5,3345.3,4.52196691]
[1642273034889,2.40572724,3345.5,3345.3,3.77494691]
[1642273035687,10.273666,3345.4,3345.3,3.77494691]
[1642273036085,11.050666,3345.4,3345.3,3.77494691]
[1642273036485,13.60726444,3345.4,3345.3,3.77494691]
[1642273038943,3.35726444,3345.4,3345.3,3.77494691]
[1642273039143,3.33359844,3345.4,3345.3,3.77494691]
[1642273039346,4.11059844,3345.4,3345.3,3.77494691]
[1642273041247,4.12838244,3345.4,3345.3,3.77494691]
[1642273042497,4.90538244,3345.4,3345.3,3.77494691]
[1642273042700,4.88759844,3345.4,3345.3,3.77494691]
[1642273044496,4.90484044,3345.4,3345.3,3.77494691]
[1642273044898,4.92915044,3345.4,3345.3,3.77494691]
[1642273045498,4.92655844,3345.4,3345.3,3.77494691]
[1642273045737,5.66459844,3345.4,3345.3,2.25]
[1642273047132,5.66459844,3345.4,3345.3,3.74401]
[1642273047734,5.66459844,3345.4,3345.3,5.10798407]
[1642273048936,6.44159844,3345.4,3345.3,5.10798407]
[1642273051690,6.45248144,3345.4,3345.3,3.61397407]
[1642273051891,6.46916544,3345.4,3345.3,3.61397407]
[1642273052091,7.24616544,3345.4,3345.3,3.61397407]
[1642273054135,7.24616544,3345.4,3344.8,1.49421]
[1642273054341,0.03357,3344.9,3344.6,1.49431]
[1642273054539,0.07950099,3344.8,3344.3,0.7473]
[1642273054741,0.045463,3344.4,3344.3,0.8237579]
[1642273055743,1.49828462,3344.4,3344.3,0.7473]
[1642273057585,0.045463,3344.4,3344.3,0.7473]
[1642273058389,4.0645,3345.2,3344.3,0.7473]
[1642273058586,4.8415,3345.2,3344.3,0.7473]
[1642273058785,0.032502,3344.5,3344.4,0.00568423]
[1642273059385,0.009093,3344.6,3344.4,0.00568423]
[1642273059787,0.032502,3344.5,3344.4,0.00568423]
[1642273059988,0.009093,3344.6,3344.4,0.00568423]
[1642273060287,0.043605,3344.5,3344.4,0.00568423]
[1642273060486,0.040107,3344.5,3344.4,0.00568423]
[1642273061538,2.59457089,3344.5,3344.4,0.00568423]
[1642273061739,2.56776489,3344.5,3344.4,0.00568423]
[1642273062440,0.009093,3344.9,3344.4,0.00568423]
[1642273062641,2.55703389,3345.1,3344.4,0.00568423]
[1642273062642,2.55703389,3345.1,3344.4,0.08214213]
[1642273063043,0.032502,3345.0,3344.5,1.11931057]
[1642273063344,0.032502,3345.0,3344.6,0.00454739]
[1642273063546,0.032502,3344.8,3344.7,0.74716]
[1642273063742,2.55683415,3344.9,3344.7,0.74716]
[1642273063940,2.55683415,3344.9,3344.7,0.75113896]
[1642273064142,2.55683415,3344.9,3344.8,0.00341054]
[1642273064388,5.517086,3345.2,3344.8,0.00341054]
[1642273064588,0.018186,3345.1,3344.8,0.00341054]
[1642273064787,0.032502,3345.0,3344.8,0.00341054]
[1642273064988,0.065004,3345.0,3344.8,0.00341054]
[1642273065189,0.031682,3344.9,3344.8,0.00341054]
[1642273065594,2.57490578,3344.9,3344.8,0.00341054]
[1642273065788,2.55677378,3344.9,3344.8,0.00341054]
[1642273066389,0.009093,3345.0,3344.8,0.00341054]
[1642273066592,0.061892,3344.9,3344.8,0.00341054]
[1642273066989,0.033567,3344.9,3344.8,0.00341054]
[1642273067291,0.033567,3344.9,3344.7,0.00397896]
[1642273067489,0.777,3345.0,3344.7,0.00397896]
[1642273067693,0.045463,3344.8,3344.7,0.00397896]
[1642273068541,2.60233622,3344.8,3344.7,0.00397896]
[1642273070543,2.60233622,3344.8,3344.6,0.00454739]
[1642273070943,0.057486,3344.7,3344.6,0.00454739]
[1642273071145,2.55687322,3344.8,3344.6,0.00454739]
[1642273071350,2.56770222,3344.8,3344.7,0.74721]
[1642273071543,2.55687322,3344.8,3344.7,0.74721]
[1642273071742,2.55687322,3344.8,3344.7,0.75118896]
[1642273072386,2.56596622,3344.9,3344.7,0.75118896]
[1642273072587,2.55687322,3344.9,3344.7,0.75118896]
[1642273072788,2.55687322,3344.9,3344.8,0.00341054]
[1642273073488,2.59658522,3344.9,3344.8,0.00341054]
[1642273073892,0.02160455,3344.8,3344.6,0.00454739]
[1642273074088,0.05410655,3344.8,3344.6,0.00454739]
[1642273074491,0.032502,3344.8,3344.7,1.45706621]
[1642273074890,0.032502,3344.8,3344.7,0.00397896]
[1642273075292,0.032502,3344.8,3344.6,0.00454739]
[1642273078540,0.013283,3344.8,3344.6,0.00454739]
[1642273078841,0.786093,3345.0,3344.6,0.00454739]
[1642273079048,1.563093,3345.0,3344.6,2.24596739]
[1642273079387,1.563093,3345.0,3344.7,0.00397896]
[1642273080188,1.554,3345.0,3344.7,0.00397896]
[1642273080594,0.019207,3344.9,3344.7,0.00397896]
[1642273081192,0.019207,3344.9,3344.6,0.00454739]
[1642273082087,0.019207,3344.9,3344.7,1.49914266]
[1642273082492,0.019207,3344.9,3344.8,0.00341054]
[1642273085644,0.019207,3344.9,3344.6,0.00454739]
[1642273085945,0.035756,3344.9,3344.6,0.00454739]
[1642273087590,0.035756,3344.9,3344.7,1.45218576]
[1642273087988,0.035756,3344.9,3344.8,0.00341054]
[1642273088390,0.035756,3344.9,3344.6,0.00454739]
[1642273089795,0.035756,3344.9,3344.7,0.00976592]
[1642273090193,0.035756,3344.9,3344.5,0.74725]
[1642273090194,0.035756,3344.9,3344.8,0.00341054]
[1642273090653,0.019207,3344.9,3344.6,0.00454739]
[1642273091239,0.035924,3344.9,3344.6,0.00454739]
[1642273092442,0.035924,3344.9,3344.6,1.49198492]
[1642273092743,0.035924,3344.9,3344.7,0.00397896]
[1642273093140,0.035924,3344.9,3344.6,0.00454739]
[1642273095288,0.035924,3344.9,3344.7,1.26952954]
[1642273095790,0.035924,3344.9,3344.8,0.00341054]
[1642273097190,0.019207,3344.9,3344.8,0.00341054]
[1642273102492,1.554,3345.0,3344.8,0.75055054]
[1642273102699,2.331,3345.0,3344.8,0.75055054]
[1642273102890,2.331,3345.0,3344.9,0.00284212]
[1642273104490,2.34238,3345.0,3344.9,0.00284212]
[1642273105490,2.360573,3345.0,3344.9,0.00284212]
[1642273105741,2.34238,3345.0,3344.9,1.46720734]
[1642273105942,5.67623012,3345.0,3344.9,0.00284212]
[1642273106642,3.11938,3345.0,3344.9,0.00284212]
[1642273107040,3.11938,3345.0,3344.9,1.51355178]
[1642273107441,5.67623012,3345.0,3344.9,1.51355178]
[1642273107644,5.67623012,3345.0,3344.9,0.00284212]
[1642273109043,6.47241012,3345.0,3344.9,0.00284212]
[1642273109491,6.47241012,3345.0,3344.6,0.00454739]
[1642273109692,0.031983,3344.8,3344.6,0.00454739]
[1642273110092,0.031983,3344.8,3344.7,1.13129359]
[1642273110496,0.031983,3344.8,3344.7,0.00397896]
[1642273110893,0.031983,3344.8,3344.6,0.00454739]
[1642273111494,2.58883312,3344.8,3344.6,0.00454739]
[1642273112495,2.55685012,3344.7,3344.6,1.34671575]
[1642273112696,2.55685012,3344.7,3344.6,0.00454739]
[1642273113343,2.55685012,3344.7,3344.5,0.00511581]
[1642273114042,2.55685012,3344.7,3344.6,1.28486683]
[1642273114442,2.55685012,3344.7,3344.6,0.00454739]
[1642273116044,2.55685012,3344.8,3344.7,1.14439349]
[1642273116546,2.55685012,3344.8,3344.7,1.14837245]
[1642273117195,2.55685012,3344.8,3344.7,0.75111896]
[1642273118298,2.55685012,3344.8,3344.7,2.06037605]
[1642273120746,2.55685012,3344.9,3344.7,2.06037605]
[1642273120951,2.55685012,3344.9,3344.7,0.75111896]
[1642273121146,2.55685012,3344.9,3344.8,0.00341054]
[1642273121445,2.58568812,3344.9,3344.8,0.00341054]
[1642273121645,2.55685012,3344.9,3344.8,0.00341054]
[1642273121844,2.57832912,3344.9,3344.8,0.00341054]
[1642273122447,2.55685012,3344.9,3344.8,0.00341054]
[1642273131154,2.56896112,3344.9,3344.8,0.00341054]
[1642273132800,2.55685012,3344.9,3344.8,0.00341054]
[1642273134098,2.61131312,3344.9,3344.8,0.00341054]
[1642273134497,2.57657012,3344.9,3344.8,0.00341054]
[1642273135300,2.57025312,3344.9,3344.8,0.00341054]
[1642273135947,2.55685012,3344.9,3344.8,0.00341054]
[1642273137354,2.50685012,3344.9,3344.8,0.00341054]
[1642273138857,2.51983712,3344.9,3344.8,0.00341054]
[1642273139254,2.50685012,3344.9,3344.8,0.00341054]
[1642273140200,2.51783512,3344.9,3344.8,0.00341054]
[1642273140398,2.53685712,3344.9,3344.8,0.00341054]
[1642273140798,2.48685712,3344.9,3344.8,0.00341054]
[1642273141406,2.48458212,3344.9,3344.8,1.4156031]
[1642273141600,2.45685012,3344.9,3344.8,1.4156031]
[1642273142199,2.47111112,3344.9,3344.8,1.4156031]
[1642273142400,2.45685012,3344.9,3344.8,1.4156031]
[1642273142801,2.45685012,3344.9,3344.8,0.00341054]
[1642273143001,2.46924212,3344.9,3344.8,0.00341054]
[1642273143251,2.45685012,3344.9,3344.8,0.00341054]
[1642273143548,0.91686508,3344.9,3344.8,0.00341054]
[1642273143950,0.91686508,3344.9,3344.8,1.34681833]
[1642273144345,0.00096587,3344.8,3344.7,0.74714]
[1642273144946,0.87595808,3344.9,3344.7,0.74714]
[1642273145445,0.86686508,3344.9,3344.7,0.74714]
[1642273145647,4.662,3345.0,3344.8,1.85881815]
[1642273145847,0.777,3345.0,3344.8,1.85881815]
[1642273146047,0.777,3345.0,3344.9,0.0764579]
[1642273146456,0.77813685,3345.0,3344.9,0.0764579]
[1642273148096,0.77813685,3345.0,3344.7,3.74057428]
[1642273148497,0.77813685,3345.0,3344.7,1.9232]
[1642273148702,0.77813685,3345.0,3344.7,3.71017441]
[1642273148897,0.77813685,3345.0,3344.7,1.9232]
[1642273149107,1.55513685,3345.0,3344.7,3.71238518]
[1642273149697,1.55513685,3345.0,3344.7,3.70641678]
[1642273149898,1.55513685,3345.0,3344.8,1.38805872]
[1642273150200,1.55513685,3345.0,3344.9,0.429]
[1642273152447,2.33213685,3345.0,3344.9,0.429]
[1642273154693,2.37294585,3345.0,3344.9,0.429]
[1642273154897,2.33213685,3345.0,3344.9,0.429]
[1642273155298,2.36746685,3345.0,3344.9,0.429]
[1642273155700,3.14446685,3345.0,3344.9,0.429]
[1642273155999,3.12316285,3345.0,3344.9,0.429]
[1642273156198,3.10913685,3345.0,3344.9,0.429]
[1642273158001,0.009093,3345.1,3344.9,0.429]
[1642273158248,0.014948,3345.1,3344.9,0.429]
[1642273158444,1.554,3345.2,3344.9,0.429]
[1642273158643,1.567139,3345.2,3345.0,0.02001608]
[1642273158843,2.331,3345.2,3345.1,0.74706]
[1642273159243,2.33213684,3345.2,3345.1,0.74706]
[1642273159642,2.34955184,3345.2,3345.1,0.74706]
[1642273162101,3.12655184,3345.2,3345.1,0.74706]
[1642273165297,5.68316118,3345.2,3345.1,0.74706]
[1642273165498,6.46016118,3345.2,3345.1,0.74706]
[1642273166271,6.46016118,3345.2,3345.1,3.74706]
[1642273168369,6.46016118,3345.2,3345.0,1.49412]
[1642273168568,0.028763,3345.1,3345.0,1.49412]
[1642273169415,2.58537234,3345.1,3345.0,1.49412]
[1642273169610,2.58537234,3345.1,3344.6,1.92313]
[1642273169810,0.026388,3345.0,3344.6,1.92313]
[1642273170017,0.044955,3345.0,3344.7,0.00170527]
[1642273170211,0.026388,3345.0,3344.7,0.00170527]
[1642273170611,0.048848,3345.0,3344.7,0.00170527]
[1642273170812,0.026388,3345.0,3344.7,0.00170527]
[1642273171011,2.55660934,3344.9,3344.7,0.00170527]
[1642273171211,2.56922234,3344.9,3344.7,0.00170527]
[1642273171412,1.15325103,3344.8,3344.7,0.00170527]
[1642273171611,1.16233603,3344.8,3344.7,0.00170527]
[1642273171811,5.76233603,3344.8,3344.4,0.00341054]
[1642273172015,0.030958,3344.7,3344.4,0.00341054]